Cogmind - Beta 14 @@@ ROGUE MODE // 2024.09.25 @ 17:55:28 Player: youngster Result: Destroyed by D-53 Grenadier with Mini Grenade Launcher Performance ------------- Evolutions (0) 0 Regions Visited (2) 400 Robots Destroyed (30) 150 Value Destroyed (634) 634 Prototype IDs (0) 0 Alien Tech Used (0) 0 Bonus (14) 14 TOTAL SCORE: 1198 Bonus ------- Follower Combat Kills 14 Cogmind --------- Core Integrity 0/250 Matter 199/300 Energy 106/250 System Corruption 0% Temperature Cool (0) Movement Treading (240) Ox1 Location -10/Mines Parts ------- > --- POWER (1) -------- Ion Engine > --- PROPULSION (2) --- Light Treads Light Treads > --- UTILITY (2) ------ High-capacity Storage Unit Core Shielding > --- WEAPON (2) ------- Improved Light Cannon Improved Light Cannon > --- INVENTORY (20) --- Light Treads Light Treads Compact Wheel Improved Heat Sink Experimental Sensor Array Improved Terrain Scanner Seismic Detector Tractor Beam Particle Cannon Particle Cannon Assault Rifle Light Assault Rifle Improved Light Cannon Improved Light Cannon Rocket Launcher Rocket Launcher Rocket Launcher Rocket Launcher Makeshift Spear Peak State ------------ > --- POWER ------------ Ion Engine > --- PROPULSION ------- Light Treads Light Treads > --- UTILITY ---------- High-capacity Storage Unit Seismic Detector > --- WEAPON ----------- Particle Cannon Particle Cannon > --- INVENTORY -------- Ion Engine Light Treads Light Treads Compact Wheel Improved Heat Sink Experimental Sensor Array Improved Terrain Scanner Core Shielding Tractor Beam Assault Rifle Light Assault Rifle Improved Light Cannon Improved Light Cannon Improved Light Cannon Improved Light Cannon Rocket Launcher Rocket Launcher Rocket Launcher Rocket Launcher Mining Laser [Rating: 13] Favorites ----------- Power Ion Engine Engine Ion Engine Propulsion Light Treads Treads Light Treads Utility High-capacity Storage Unit Device Seismic Detector Storage High-capacity Storage Unit Protection Core Shielding Weapon Particle Cannon Energy Gun Particle Gun Energy Cannon Particle Cannon Ballistic Gun Assault Rifle Ballistic Cannon Improved Light Cannon Launcher Grenade Launcher Build | -11 -10 -10 ------- Run | Yrd Mat Min Slots Evolved . | . . . Power . | . . . Propulsion . | . . . Utility . | . . . Weapon . | . . . Parts Attached 45 | 7 28 10 Power 2 | 1 . 1 Engine 2 | 1 . 1 Core . | . . . Reactor . | . . . Propulsion 4 | 2 2 . Treads 4 | 2 2 . Leg . | . . . Wheel . | . . . Hover . | . . . Flight . | . . . Utility 11 | 2 7 2 Device 5 | 1 3 1 Storage 2 | 1 1 . Processor . | . . . Hackware . | . . . Protection 4 | . 3 1 Artifact . | . . . Weapon 28 | 2 19 7 Energy Gun 3 | . 3 . Energy Cannon 10 | . 8 2 Ballistic Gun 4 | 2 2 . Ballistic Cannon 2 | . . 2 Launcher 9 | . 6 3 Special Weapon . | . . . Impact Weapon . | . . . Slashing Weapon . | . . . Piercing Weapon . | . . . Special Melee Weapon . | . . . Unidentified Prototypes . | . . . Parts Lost 1 | . . 1 Power 1 | . . 1 Propulsion . | . . . Utility . | . . . Weapon . | . . . Highest Loss Streak 1 | . . 1 To Critical Strikes . | . . . Average Slot Usage (%) 99 | . 99 99 Engine 13 | . 14 13 Treads 27 | . 27 28 Device 8 | . 7 12 Storage 14 | . 14 14 Protection 5 | . 6 1 Energy Gun 1 | . 1 . Energy Cannon 23 | . 23 25 Ballistic Gun 2 | . 2 . Peak Build Rating 13 | 7 12 13 Average Rating 11 | 5 11 12 On Entrance 6 | . 7 12 Naked Turns . | . . . Heaviest Build 54 | 14 54 54 Greatest Support 40 | 40 40 40 Greatest Overweight (x) 2 | . 2 1 Average Overweight (x) . | . . 1 Largest Inventory Capacity 20 | 8 20 20 Average Capacity 19 | 6 19 20 Most Carried 20 | 4 20 20 Average Carried 18 | 1 18 19 Final Capacity 20 | 8 20 20 Final Carried 19 | 4 19 19 Class Distribution -------------------- 100% | Mutant Dominant Class ---------------- Mutant | -10/Materials Mutant | -10/Mines Resources | -11 -10 -10 ----------- Run | Yrd Mat Min Matter Collected 718 | 298 360 60 Remotely . | . . . Salvage Created 890 | 119 644 127 Parts 62 | 13 44 5 Haulers Intercepted 2 | . 2 . Recyclers Shooed 1 | . 1 . Parts Field Recycled . | . . . Retrieved Matter . | . . . Parts Self-Destructed . | . . . Prevented . | . . . Kills | -11 -10 -10 ------- Run | Yrd Mat Min Combat Hostiles Destroyed 15 | . 12 3 Guns 4 | . 4 . Cannons 4 | . 3 1 AOE 6 | . 4 2 Classes Destroyed 9 | 2 7 . Worker 1 | . 1 . Builder 2 | . 2 . Tunneler 3 | 3 . . Hauler 2 | . 2 . Recycler 2 | 1 . 1 Operator 2 | . 2 . Watcher 3 | . 3 . Swarmer 4 | . 3 1 Grunt 11 | . 9 2 Best Kill Streak 5 | 4 5 2 Combat Bots Only 4 | . 4 2 Max Kills in Single Turn 3 | 1 3 1 Gunslinging . | . . . Exploded 3 | . 3 1 Melee . | . . . Uniques/NPCs Destroyed . | . . . Combat | -11 -10 -10 -------- Run | Yrd Mat Min Hostile Shots Fired 65 | . 43 22 Missed 14 | . 9 5 Damage Taken 1186 | . 427 759 Core 260 | . 86 174 Absorbed by Shields . | . . . Redirected to Shielding 42 | . 8 34 Regen/Repaired (Parts) 99 | . 99 . Core Remaining (%) 100 | 100 . . Volleys Fired 57 | 7 43 7 Largest 2 | 2 2 2 Hottest 136 | 40 136 136 Shots Fired 106 | 14 81 11 Gun 42 | 14 28 . Cannon 56 | . 48 8 Launcher 8 | . 5 3 Special . | . . . Kinetic 37 | 14 17 6 Thermal 61 | . 59 2 Explosive 8 | . 5 3 Electromagnetic . | . . . Robot Hit Streak 14 | 5 12 14 Robot Miss Streak 4 | 2 4 2 Penetration Max . | . . . Secondary Targets . | . . . Shots Hit Robots 59 | 8 47 4 Core Hits 39 | 6 28 5 Critical Kills 1 | . 1 . Critical Parts Destroyed . | . . . Critical Strikes 2 | . 2 . Burn 1 | . 1 . Meltdown 1 | . 1 . Melee Attacks . | . . . Impact . | . . . Slashing . | . . . Piercing . | . . . Sneak Attacks . | . . . Combat Hostiles . | . . . Follow-up Attacks . | . . . Damage Inflicted 1335 | 77 1079 179 Guns 328 | 77 251 . Cannons 656 | . 576 80 Explosions 322 | . 233 89 Melee . | . . . Ramming 29 | . 19 10 Kinetic 258 | 77 141 40 Thermal 726 | . 686 40 Explosive 322 | . 233 89 Electromagnetic . | . . . Impact . | . . . Slashing . | . . . Piercing . | . . . Highest Corruption . | . . . Average Corruption . | . . . Corruption Purged . | . . . Corruption Blocked . | . . . Overload Shots . | . . . Overflow Damage . | . . . Projectiles . | . . . Explosions . | . . . Melee . | . . . Knockbacks . | . . . Impact . | . . . Kinetic . | . . . Secondary . | . . . Self-Inflicted Damage 18 | . . 18 Shots 1 | . . 1 Rammed 6 | . 5 1 Targets Rammed 8 | . 6 2 Kicked . | . . . Crushed 2 | . 1 1 Highest Temperature 394 | . 394 75 Average Temperature 86 | . 93 28 Received Heat Transfer 261 | . 243 18 Effects 1 | . 1 . Shutdowns 1 | . 1 . Siege Activations . | . . . Robots Corrupted . | . . . Combat Hostiles . | . . . Parts Fried . | . . . Impact Corruptions . | . . . Robots Melted 1 | . 1 . Combat Hostiles 1 | . 1 . Parts Melted 2 | . 2 . Heat Transferred 1443 | . 1369 74 Parts Sabotaged . | . . . Parts Stolen . | . . . Parts Stripped . | . . . Power Chain Reactions . | . . . Alert | -11 -10 -10 ------- Run | Yrd Mat Min Peak Influence 392 | 20 392 267 Initial 106 | . 13 106 Average 146 | 8 151 157 Maximum Alert Level 1 | . 1 1 Low Security (%) 58 | 100 47 98 Level 1 41 | . 52 1 Level 2 . | . . . Level 3 . | . . . Level 4 . | . . . Level 5 . | . . . High Security . | . . . Max Security . | . . . Squads Dispatched 2 | . 2 . Investigation 1 | . 1 . Extermination . | . . . Reinforcement 1 | . 1 . Assault . | . . . Garrison . | . . . Intercept . | . . . Searches Triggered . | . . . Construction Impeded . | . . . Haulers Reinforced . | . . . Active Scanning Responses . | . . . Cargo Convoy Interrupts . | . . . Stealth | -11 -10 -10 --------- Run | Yrd Mat Min Distress Signals 1 | . 1 . Communications Jammed . | . . . Distress Signals . | . . . Times Spotted 22 | . 16 6 Peak Tracking Total 3 | . 3 3 Tactical Retreats 1 | . 1 . Traps | -11 -10 -10 ------- Run | Yrd Mat Min Traps Triggered . | . . . Indirectly . | . . . Trap Hack Attempts . | . . . Triggered . | . . . Disarmed . | . . . Reprogrammed . | . . . Reused . | . . . Traps Extracted . | . . . Installed . | . . . Triggered . | . . . Machines | -11 -10 -10 ---------- Run | Yrd Mat Min Machines Disabled 4 | . 4 . Max in Single Turn 1 | . 1 . Machines Repaired . | . . . Machines Dismantled . | . . . Machines Sabotaged . | . . . Overloaded Fab Kills . | . . . Hacking | -11 -10 -10 --------- Run | Yrd Mat Min Machines Accessed 7 | . 7 . Terminals 6 | . 6 . Fabricators . | . . . Repair Stations 1 | . 1 . Recycling Units . | . . . Scanalyzers . | . . . Garrison Access . | . . . Total Hacks 22 | . 22 . Successful 11 | . 11 . Failed 11 | . 11 . Catastrophic 2 | . 2 . Database Lockouts . | . . . Manual 19 | . 19 . Terminals 20 | . 20 . Fabricators . | . . . Repair Stations 2 | . 2 . Recycling Units . | . . . Scanalyzers . | . . . Garrison Access . | . . . Terminal Hacks 1 | . 1 . Part Schematic 1 | . 1 . Fabricator Hacks . | . . . Repair Station Hacks 2 | . 2 . Scan Component 1 | . 1 . Repair 1 | . 1 . Recycling Unit Hacks . | . . . Scanalyzer . | . . . Garrison Access Hacks . | . . . Unauthorized Hacks 8 | . 8 . Terminals 8 | . 8 . Botnet 1 | . 1 . Operators 1 | . 1 . Skim 6 | . 6 . Fabricators . | . . . Repair Stations . | . . . Recycling Units . | . . . Scanalyzers . | . . . Garrison Access . | . . . Data Cores Recovered 1 | . 1 . Used . | . . . Hacking Detections 7 | . 7 . Full Trace Events 1 | . 1 . Feedback Events . | . . . Feedback Blocked . | . . . Robot Schematics Acquired . | . . . Robots Built . | . . . Authchips . | . . . Time . | . . . Total Robot Build Rating . | . . . Part Schematics Acquired 1 | . 1 . Parts Built . | . . . Authchips . | . . . Time . | . . . Total Part Build Rating . | . . . Parts Repaired 1 | . 1 . Time 26 | . 26 . Parts Recycled . | . . . Recycled Matter . | . . . Retrieved Matter . | . . . Retrieved Components . | . . . Parts Scanalyzed . | . . . Part Schematics Acquired . | . . . Parts Damaged . | . . . Bothacking | -11 -10 -10 ------------ Run | Yrd Mat Min Used RIF Installer . | . . . Robots Hacked . | . . . Non-combat . | . . . Combat . | . . . Robot Hacks Applied . | . . . Relay Couplers Released . | . . . Fabnet Peak Effective % . | . . . Robots Rewired . | . . . Allies Hacked . | . . . Hacks Repelled . | . . . Allies | -11 -10 -10 -------- Run | Yrd Mat Min Total Allies 5 | . . 5 Largest Group 5 | . . 5 Highest-Rated Group 85 | . . 85 Highest-Rated Ally 31 | . . 31 Total Orders . | . . . Ally Attacks 13 | . . 13 Total Damage 88 | . . 88 Kills 2 | . . 2 Allies Corrupted . | . . . Allies Melted . | . . . Intel | -11 -10 -10 ------- Run | Yrd Mat Min Robot Analysis Total . | . . . Derelict Logs Recovered . | . . . Drone Launches . | . . . Drone Recoveries . | . . . Exploration | -11 -10 -10 ------------- Run | Yrd Mat Min Turns Passed 2728 | 111 2144 473 Spaces Moved 1008 | 50 781 177 Core 3 | 3 . . Treads 1005 | 47 781 177 Legs . | . . . Wheels . | . . . Hover . | . . . Flight . | . . . Fastest Speed 50 | 50 160 240 Average Speed 234 | 153 238 240 Slowest Speed 320 | 160 320 240 Overloaded Moves . | . . . Propulsion Burnouts . | . . . Robots Hopped . | . . . Cave-ins Triggered . | . . . Exploration Rate (%) 48 | 4 99 42 Regions Visited 2 Branch Regions 1 Pre-discovered Areas . | . . . Known Exits Taken . | . . . Unknown Exits Taken 2 | 1 1 . Scrap Searched . | . . . Spaces Dug 60 | . 29 31 Terrain Destroyed 68 | . 35 33 Melee . | . . . Projectile 2 | . . 2 AOE 66 | . 35 31 Terrain Rammed . | . . . Walls Destroyed . | . . . Machines Disabled . | . . . Actions | -11 -10 -10 --------- Run | Yrd Mat Min Total 1245 | 68 969 208 Wait 83 | 1 75 7 Move 1006 | 49 780 177 Hop . | . . . Pick Up 30 | 4 23 3 Fast Attach 10 | 7 3 . Attach 2 | . 1 1 Detach 2 | . 2 . Swap 33 | . 24 9 Drop 14 | . 12 2 Fire 57 | 7 43 7 Melee . | . . . Ram . | . . . Kick . | . . . Crush 8 | . 6 2 Escape Stasis . | . . . Rewire . | . . . Trap . | . . . Miscellaneous . | . . . Route ------- -11/Scrapyard -10/Materials (discovered 5 exits: [*Mat x3] / [*Min] / *Sub) -10/Mines (discovered 3 exits: [*Mat] / Exi / Sub) History --------- Turn | Location | Event 14 | -11/Scrapyard | Discovered new exit (range 15) 112 | -11/Scrapyard | Entered Materials 306 | -10/Materials | Build established: Mutant 664 | -10/Materials | Discovered new exit (range 16) 921 | -10/Materials | Discovered new exit (range 11) 1188 | -10/Materials | Discovered new exit (range 14) 1533 | -10/Materials | Discovered new exit (range 15) 1652 | -10/Materials | Learned 2 Storage zone layouts 1691 | -10/Materials | Discovered new exit (range 13) 1800 | -10/Materials | Loaded intel: 30 machine locations 1861 | -10/Materials | Learned location of 2 exits from Mines 1971 | -10/Materials | Learned location of 1 exit from Recycling 2042 | -10/Materials | Repaired Lgt. Treads 2256 | -10/Materials | Entered Mines 2257 | -10/Mines | Identified exit to Subcaves 2257 | -10/Mines | Identified exit to Exiles 2312 | -10/Mines | Assisted by bots powering up and referring to "LRC-V3" 2396 | -10/Mines | Discovered new exit (range 10) 2457 | -10/Mines | Found a damaged Exp. Sensor Array with a note attached 2463 | -10/Mines | Found Prototype Device 2671 | -10/Mines | Assembled infested the area 2672 | -10/Mines | A weapon hastily lodged in a ceiling crevice suddenly fell to the ground 2718 | -10/Mines | Core integrity fell below 50% 2722 | -10/Mines | Core integrity fell below 20% 2729 | -10/Mines | Destroyed by D-53 Grenadier with Mini Grenade Launcher Last Messages --------------- 02671_ ALERT: Infestation in the mines, dispatching Demolisher response squad. 02671_ U-05 Engineer lays Concrete. 02672_ A Mak. Spear has been hastily shoved under some rubble with a note attached: "Stab them where it hurts!" 02673_ U-05 Engineer lays Concrete. 02675_ Dropped Mining Laser. 02676_ U-05 Engineer lays Concrete. 02677_ Acquired Mak. Spear. 02678_ U-05 Engineer builds a Wall. 02693_ Slammed into T-07 Excavator. 02707_ Mercenary 1a destroyed. 02707_ Core Extractor disabled. 02712_ Trooper 1b destroyed. 02713_ The unstable cave ceiling collapses. 02714_ MY-TA9(g) destroyed. 02717_ The unstable cave ceiling collapses. 02718_ Ion Engine destroyed. 02719_ The unstable cave ceiling collapses. Map ----- +----------------------------------------------------+ | ????????####??######## #???????# | | ??????????????# %* #???????## | | ?????>????????# #######????????###### | | ???????######## #???????????????????? | | ???????# ##??????????????????? | | ???????# ##?????????????????? | | ???????###### #??????????????????? | | ????????????## #??????????????????? ?? | | ?????????????# #?????????????????????? | | ????????????## #?????????????????????? | | ?????######## #?????????????????????? | | ?????# ## ##?????????????????????? | | ?????# ### ### ##??????????????????????? | | ?????# #?# ###%###???????????????????????? | | ????## ### #?????????????????????????? | | ????# ###### #?????????????????????????? | | ???## #??## ####??????????????????????? | | ???# #?### ;% #??????????????????????? | | ???# ;## t% # #####??????????????????? | | ???# =%* #??????????????????? | | ???## % %* ###????????????????? | | ????##### ## *dd #????????????????? | | ????????# ## ! ##????????????????? | | ????????# #?# = # #?????????????????? | | ????????# #?# #?????????????????? | | ????????# ### @ # ## #????????????? | | ????????# ## #????????????? | | ????????# ### ## #????????????? | | ????????? ## ## #????????????? | | ?????????#### #????????????? | | ????????????# ## ##$#????????????? | | ????????????# #???????????????? | | ????????????## ##???????????????? | | ?????????????#### ##????????????????? | | ????????????????# ######?????????????????? | | ????????????????# #??????????????????????? | | ????????????????# #??????????????????????? | | ????????????????# #??????????????????????? | | ????????????????# #??????????????????????? | | ????????????????# #??????????????????????? | | ????????????????? #??????????????????????? | | ????????????????? ???????????????????????? | | ?????????????????????????????????????????? | | ?????????????????????????????????????????? | | ?????????????????????????????????????????? | | ?????????????????????????????????????????? | | ?????????????????????????????????????????? | | ?????????????????????????????????????????? | | ?????????????????>???????????????????????? | | ?????????????????????????????????????????? | +----------------------------------------------------+ Best States ------------- Heat Dissipation 35 Energy Generation 10 Energy Capacity 250 Matter Stores 300 Matter Capacity 300 Sight Range 16 Terrain Scan Density 10 Core Shielding 20 Evasion (%) 40 Recoil Reduction 2 Item Schematics ----------------- Cargo Storage Unit | -10/Materials | Hacked Robot Schematics ------------------ None Fabricated ------------ Nothing Alien Tech Used ----------------- None Achievements -------------- None Challenges ------------ None Game ------ Seed ThrowingConcussivePlating Manual? 0 Play Time 00:14:32 Cumulative 508.7 hours Start 2024.09.25 @ 17:43:45 End 2024.09.25 @ 17:55:28 Sessions 1 Manual Loads 0 Difficulty Rogue Special Mode None Game No. 234 Rogue 234 Adventurer 0 Explorer 0 Win Type - Total 12 Types 9/0/1/1/0/0/0/1/0 Lore% 72 Gallery% 89 Achievement% 72 Wizard Run 0 Options --------- Layout 2 ASCII 0 Keyboard 1 Movement Vi Keybinds 0 Fullscreen 2 Font 32/SmallcapsGlow Map View 50x44 Zoom Use 0% Tactical HUD 1 Map Filters NONE Filters NONE Steam 0 RUN: 202f94f3-7520-4844-bae2-18b6bb3890a5